Cogmind - Beta 16.1 @@@ ROGUE MODE // 2026.03.09 @ 18:01:28 Player: QXander Result: Destroyed by as-72295 with Assembled Blade Performance ------------- Evolutions (1) 500 Regions Visited (3) 600 Robots Destroyed (26) 130 Value Destroyed (747) 747 Prototype IDs (1) 20 Alien Tech Used (0) 0 Bonus (0) 0 TOTAL SCORE: 1997 Bonus ------- None Cogmind --------- Core Integrity 0/400 Matter 246/300 Energy 100/100 System Corruption 1% Temperature Cool (20) Movement Core (200) Ox3 Location -9/Mines Parts ------- > --- POWER (1) -------- (None) > --- PROPULSION (2) --- (None) > --- UTILITY (4) ------ Medium Storage Unit Improved Targeting Computer Improved Targeting Computer > --- WEAPON (2) ------- (None) > --- INVENTORY (10) --- Improved Ion Engine Improved Ion Engine Hover Unit Heat Sink Weight Redist. System Mining Laser Peak State ------------ > --- POWER ------------ Heavy Ion Engine > --- PROPULSION ------- Wheel Compact Wheel > --- UTILITY ---------- Heat Sink Medium Storage Unit Improved Targeting Computer Improved Targeting Computer > --- WEAPON ----------- Heavy Assault Rifle Heavy Assault Rifle > --- INVENTORY -------- Improved Ion Engine Improved Ion Engine Compact Wheel Compact Wheel Hover Unit Heat Sink Weight Redist. System Shotgun [Rating: 16] Favorites ----------- Power Ion Engine Engine Ion Engine Power Core Light Nuclear Core Propulsion Compact Wheel Wheel Compact Wheel Utility Medium Storage Unit Device Heat Sink Storage Medium Storage Unit Processor Signal Interpreter Weapon Light Assault Rifle Energy Gun EM Shotgun Ballistic Gun Light Assault Rifle Slashing Weapon Katana Build | -11 -10 -9 -9 ------- Run | Yrd Mat Mat Min Slots Evolved 2 | . . 2 . Power . | . . . . Propulsion . | . . . . Utility 2 | . . 2 . Weapon . | . . . . Parts Attached 39 | 6 14 19 . Power 7 | 1 2 4 . Engine 6 | 1 1 4 . Core 1 | . 1 . . Reactor . | . . . . Propulsion 8 | 2 4 2 . Treads . | . . . . Leg . | . . . . Wheel 8 | 2 4 2 . Hover . | . . . . Flight . | . . . . Utility 11 | 1 4 6 . Device 5 | . 1 4 . Storage 3 | 1 2 . . Processor 3 | . 1 2 . Hackware . | . . . . Protection . | . . . . Artifact . | . . . . Weapon 13 | 2 4 7 . Energy Gun 4 | . 4 . . Energy Cannon . | . . . . Ballistic Gun 8 | 2 . 6 . Ballistic Cannon . | . . . . Launcher . | . . . . Special Weapon . | . . . . Impact Weapon . | . . . . Slashing Weapon 1 | . . 1 . Piercing Weapon . | . . . . Special Melee Weapon . | . . . . Unidentified Prototypes 1 | . . 1 . Parts Lost 16 | . 2 6 8 Power 2 | . . 1 1 Propulsion 6 | . 1 2 3 Utility 3 | . . 2 1 Weapon 5 | . 1 1 3 Highest Loss Streak 7 | . 2 2 7 To Critical Strikes . | . . . . Average Backups 5 | 1 4 6 7 Power . | . . 1 2 Propulsion 3 | . 3 3 1 Utility . | . . . 2 Weapon . | . . . 1 Tool/Special . | . . . . Unused Backups 6 | . 1 1 4 Power 3 | . . 1 2 Propulsion 2 | . 1 . 1 Utility . | . . . . Weapon 1 | . . . 1 Tool/Special . | . . . . Average Slot Usage (%) 87 | . 94 78 96 Engine 11 | . 11 10 11 Core 1 | . 2 . . Wheel 24 | . 26 21 20 Device 5 | . . 9 9 Storage 12 | . 14 11 11 Processor 7 | . 9 4 22 Energy Gun 7 | . 12 1 . Ballistic Gun 15 | . 15 15 22 Slashing Weapon 1 | . . 3 . Peak Build Rating 16 | 6 9 16 16 Average Rating 9 | 4 7 11 15 On Entrance 7 | . 6 9 16 Avg Prop Armor Cover (%) . | . . . . Naked Turns . | . . . . Heaviest Build 26 | 10 22 26 25 Greatest Support 32 | 26 32 32 32 Greatest Overweight (x) 2 | . 1 2 . Average Overweight (x) . | . . . . Largest Inventory Capacity 10 | 8 10 10 10 Average Capacity 9 | 6 9 10 10 Most Carried 8 | 2 8 8 8 Average Carried 5 | 1 4 6 7 Final Capacity 10 | 8 10 10 10 Final Carried 7 | 2 6 7 6 Class Distribution -------------------- 100% | Mutant Dominant Class ---------------- Mutant | -10/Materials Mutant | -9/Materials Mutant | -9/Mines Resources | -11 -10 -9 -9 ----------- Run | Yrd Mat Mat Min Matter Collected 874 | 187 242 445 . Remotely . | . . . . Salvage Created 977 | . 334 614 29 Parts 46 | . 15 31 . Haulers Intercepted 1 | . 1 . . Recyclers Shooed 1 | . . 1 . Parts Field Recycled . | . . . . Retrieved Matter . | . . . . Parts Self-Destructed . | . . . . Prevented . | . . . . Parts Restored . | . . . . Kills | -11 -10 -9 -9 ------- Run | Yrd Mat Mat Min Combat Hostiles Destroyed 24 | . 5 16 3 Melee 2 | . . 2 . Guns 22 | . 5 14 3 Classes Destroyed 8 | . 3 4 1 Hauler 1 | . 1 . . Recycler 1 | . . 1 . Watcher 3 | . 2 1 . Swarmer 4 | . . 4 . Grunt 15 | . 5 10 . Duelist 1 | . . 1 . Sentry 1 | . . 1 . Assembled 3 | . . . 3 Best Kill Streak 5 | . 3 5 3 Combat Bots Only 4 | . 2 4 3 Max Kills in Single Turn 2 | . 1 2 1 Gunslinging 1 | . . 1 . Exploded . | . . . . Melee 1 | . . 1 . Uniques/NPCs Destroyed . | . . . . Combat | -11 -10 -9 -9 -------- Run | Yrd Mat Mat Min Hostile Shots Fired 197 | . 48 107 42 Missed 52 | . 14 28 10 Hits 145 | . 34 79 32 Melee 21 | . . 6 15 Projectile 124 | . 34 73 17 Critical Strikes 5 | . 2 3 . Part Disruptions 2 | . . . 2 Damage Taken 2150 | . 456 1011 683 Core 581 | . 163 229 189 Absorbed by Shields . | . . . . Core Remaining (%) 67 | 100 34 . . Volleys Fired 99 | . 44 46 9 Largest 2 | . 2 2 2 Hottest 90 | . 90 90 46 Shots Fired 185 | . 83 85 17 Gun 185 | . 83 85 17 Cannon . | . . . . Launcher . | . . . . Special . | . . . . Kinetic 163 | . 74 72 17 Thermal 7 | . 7 . . Explosive . | . . . . Electromagnetic 15 | . 2 13 . Robot Hit Streak 13 | . 5 13 9 Robot Miss Streak 5 | . 5 2 3 Penetration Max . | . . . . Secondary Targets 5 | . . 5 . Max Gunslinging Chain 1 | . . 1 . Shots Hit Robots 133 | . 46 75 12 Core Hits 54 | . 18 28 8 Critical Kills . | . . . . Critical Parts Destroyed 1 | . . 1 . Critical Strikes 2 | . . 2 . Destroy 1 | . . 1 . Sever 1 | . . 1 . Melee Attacks 7 | . . 7 . Impact . | . . . . Slashing 7 | . . 7 . Piercing . | . . . . Sneak Attacks . | . . . . Combat Hostiles . | . . . . Follow-up Attacks . | . . . . Damage Inflicted 1926 | . 419 1307 200 Guns 1641 | . 419 1022 200 Cannons . | . . . . Explosions 61 | . . 61 . Melee 224 | . . 224 . Ramming . | . . . . Kinetic 1423 | . 302 921 200 Thermal 150 | . 89 61 . Explosive . | . . . . Electromagnetic 129 | . 28 101 . Impact . | . . . . Slashing 224 | . . 224 . Piercing . | . . . . Highest Corruption 2 | . 2 . 1 Average Corruption 1 | . 2 . 1 Corruption Purged . | . . . . Corruption Blocked . | . . . . Effects 1 | . 1 . . Energy Discharges 1 | . 1 . . Overload Shots . | . . . . Overflow Damage 7 | . . 7 . Projectiles . | . . . . Explosions . | . . . . Melee 7 | . . 7 . Knockbacks . | . . . . Impact . | . . . . Kinetic . | . . . . Secondary . | . . . . Self-Inflicted Damage 65 | . . 65 . Shots 2 | . . 2 . Rammed . | . . . . Targets Rammed . | . . . . Kicked . | . . . . Crushed . | . . . . Highest Temperature 282 | . 282 103 20 Average Temperature 63 | . 68 58 11 Received Heat Transfer 734 | . 285 309 140 Siege Activations . | . . . . Martial Activations . | . . . . Shielding Activations . | . . . . Robots Disrupted . | . . . . Combat Hostiles . | . . . . Robots Corrupted . | . . . . Combat Hostiles . | . . . . Parts Fried 2 | . 2 . . Impact Corruptions . | . . . . Robots Melted . | . . . . Combat Hostiles . | . . . . Parts Melted . | . . . . Heat Transferred 322 | . 222 100 . Parts Sabotaged . | . . . . Parts Stolen . | . . . . Parts Stripped . | . . . . Power Chain Reactions 2 | . . 2 . Alert | -11 -10 -9 -9 ------- Run | Yrd Mat Mat Min Maximum Alert Level . | . . . . Low Security (%) 100 | 100 100 100 100 Level 1 . | . . . . Level 2 . | . . . . Level 3 . | . . . . Level 4 . | . . . . Level 5 . | . . . . High Security . | . . . . Max Security . | . . . . Peak Influence 133 | . 57 133 39 Initial 39 | . . . 39 Average 41 | . 11 82 14 Influence Increases 610 | . 171 439 . Destroy 0b10 Robot/C 420 | . 100 320 . Destroy 0b10 Robot/NC 25 | . 15 10 . Destroy Leader 98 | . 36 62 . Trap Triggered on 0b10 20 | . 20 . . Successful Hack 26 | . . 26 . Disable Machine 15 | . . 15 . Destroy Structure 6 | . . 6 . Influence Decreases 610 | . 171 337 102 Entered New Map 63 | . . . 63 Time Decay 438 | . 151 277 10 Lost Part 90 | . 20 60 10 Lost Ally 19 | . . . 19 Squads Dispatched 3 | . 1 2 . Investigation . | . . . . Extermination . | . . . . Reinforcement 3 | . 1 2 . Assault . | . . . . Garrison . | . . . . Intercept . | . . . . Searches Triggered . | . . . . Construction Impeded . | . . . . Haulers Reinforced . | . . . . Active Scanning Responses . | . . . . Cargo Convoy Interrupts . | . . . . Stealth | -11 -10 -9 -9 --------- Run | Yrd Mat Mat Min Distress Signals 3 | . 1 2 . Communications Jammed . | . . . . Distress Signals . | . . . . Times Spotted 52 | . 9 24 19 Peak Tracking Total 17 | . 3 6 17 Tactical Retreats 1 | . . . 1 Traps | -11 -10 -9 -9 ------- Run | Yrd Mat Mat Min Traps Triggered 2 | . 2 . . Indirectly . | . . . . Trap Hack Attempts . | . . . . Triggered . | . . . . Disarmed . | . . . . Reprogrammed 6 | . 6 . . Reused 2 | . 2 . . Traps Extracted . | . . . . Installed . | . . . . Triggered 2 | . 2 . . Machines | -11 -10 -9 -9 ---------- Run | Yrd Mat Mat Min Machines Disabled 1 | . . 1 . Max in Single Turn 1 | . . 1 . Machines Repaired . | . . . . Machines Dismantled . | . . . . Machines Sabotaged . | . . . . Overloaded Fab Kills . | . . . . Hacking | -11 -10 -9 -9 --------- Run | Yrd Mat Mat Min Machines Accessed 6 | . 2 4 . Terminals 6 | . 2 4 . Fabricators . | . . . . Repair Stations . | . . . . Recycling Units . | . . . . Scanalyzers . | . . . . Garrison Access . | . . . . Total Hacks 12 | . 6 6 . Successful 7 | . 2 5 . Failed 5 | . 4 1 . Catastrophic 1 | . . 1 . Database Lockouts . | . . . . Manual . | . . . . Terminals 12 | . 6 6 . Fabricators . | . . . . Repair Stations . | . . . . Recycling Units . | . . . . Scanalyzers . | . . . . Garrison Access . | . . . . Terminal Hacks 7 | . 2 5 . Locate Traps 2 | . 1 1 . Reprogram Traps 1 | . 1 . . Surveillance Status 1 | . . 1 . Zone Layout 3 | . . 3 . Fabricator Hacks . | . . . . Repair Station Hacks . | . . . . Recycling Unit Hacks . | . . . . Scanalyzer . | . . . . Garrison Access Hacks . | . . . . Unauthorized Hacks . | . . . . Terminals . | . . . . Fabricators . | . . . . Repair Stations . | . . . . Recycling Units . | . . . . Scanalyzers . | . . . . Garrison Access . | . . . . Data Cores Recovered . | . . . . Used . | . . . . Hacking Detections 4 | . 2 2 . Full Trace Events . | . . . . Feedback Events . | . . . . Feedback Blocked . | . . . . Robot Schematics Acquired . | . . . . Robots Built . | . . . . Authchips . | . . . . Time . | . . . . Total Robot Build Rating . | . . . . Part Schematics Acquired . | . . . . Parts Built . | . . . . Authchips . | . . . . Time . | . . . . Total Part Build Rating . | . . . . Part Studies Acquired . | . . . . Parts Repaired . | . . . . Time . | . . . . Parts Recycled . | . . . . Recycled Matter . | . . . . Retrieved Matter . | . . . . Retrieved Components . | . . . . Parts Scanalyzed . | . . . . Part Schematics Acquired . | . . . . Parts Damaged . | . . . . Bothacking | -11 -10 -9 -9 ------------ Run | Yrd Mat Mat Min Used RIF Installer . | . . . . Robots Hacked . | . . . . Non-combat . | . . . . Combat . | . . . . Robot Hacks Applied . | . . . . Relay Couplers Released . | . . . . Fabnet Peak Effective % . | . . . . Robots Rewired . | . . . . Allies Hacked . | . . . . Hacks Repelled . | . . . . Allies | -11 -10 -9 -9 -------- Run | Yrd Mat Mat Min Total Allies 1 | . . . 1 Largest Group 1 | . . . 1 Highest-Rated Group 31 | . . . 31 Highest-Rated Ally 31 | . . . 31 Total Orders . | . . . . Ally Attacks 9 | . . . 9 Total Damage 106 | . . . 106 Kills 3 | . . . 3 Allies Corrupted . | . . . . Allies Melted . | . . . . Intel | -11 -10 -9 -9 ------- Run | Yrd Mat Mat Min Active Infowar (turns) 167 | . 36 131 . Sensors 167 | . 36 131 . Robot Analysis Total . | . . . . Derelict Logs Recovered . | . . . . Drone Launches . | . . . . Drone Recoveries . | . . . . Exploration | -11 -10 -9 -9 ------------- Run | Yrd Mat Mat Min Turns Passed 1404 | 72 678 605 49 Spaces Moved 1082 | 69 552 442 19 Core 3 | 3 . . . Treads . | . . . . Legs . | . . . . Wheels 1079 | 66 552 442 19 Hover . | . . . . Flight . | . . . . Fastest Speed 50 | 50 90 80 90 Average Speed 92 | 88 94 90 96 Slowest Speed 115 | 100 115 110 100 Overloaded Moves . | . . . . Propulsion Burnouts . | . . . . Robots Hopped . | . . . . Potential Cave-ins . | . . . . Cave-ins Triggered . | . . . . Exploration Rate (%) 25 | 3 60 31 6 Regions Visited 3 Branch Regions 1 Pre-discovered Areas . | . . . . Known Exits Taken . | . . . . Unknown Exits Taken 3 | 1 1 1 . Scrap Searched . | . . . . Spaces Dug . | . . . . Terrain Destroyed 6 | . . 6 . Melee . | . . . . Projectile . | . . . . AOE 6 | . . 6 . Terrain Rammed . | . . . . Walls Destroyed . | . . . . Machines Disabled . | . . . . Actions | -11 -10 -9 -9 --------- Run | Yrd Mat Mat Min Total 1294 | 76 639 546 33 Wait 33 | . 14 19 . Move 1079 | 68 551 441 19 Hop . | . . . . Pick Up 16 | 2 7 6 1 Fast Attach 16 | 6 2 8 . Attach 11 | . 4 4 3 Detach 6 | . 3 2 1 Swap 16 | . 8 8 . Drop 11 | . 6 5 . Fire 99 | . 44 46 9 Melee 7 | . . 7 . Ram . | . . . . Kick . | . . . . Crush . | . . . . Escape Stasis . | . . . . Rewire . | . . . . Trap . | . . . . Miscellaneous . | . . . . Route ------- -11/Scrapyard -10/Materials (discovered 3 exits: *Mat / [*Min x2]) -9/Materials -9/Mines History --------- Turn | Location | Event 21 | -11/Scrapyard | Discovered new exit (range 16) 73 | -11/Scrapyard | Entered Materials 315 | -10/Materials | Build established: Mutant 332 | -10/Materials | Discovered new exit (range 12) 442 | -10/Materials | Core integrity fell below 50% 636 | -10/Materials | Discovered new exit (range 8) 695 | -10/Materials | Discovered new exit (range 9) 751 | -10/Materials | Entered another Materials area 751 | -9/Materials | Evolved 2 slots: Utility x2 1185 | -9/Materials | Discovered new exit (range 11) 1315 | -9/Materials | Core integrity fell below 50% 1356 | -9/Materials | Entered Mines 1357 | -9/Mines | Assembled infested the area 1359 | -9/Mines | Received a Mining Laser from a helpful Derelict 1401 | -9/Mines | Core integrity fell below 20% 1405 | -9/Mines | Destroyed by as-72295 with Assembled Blade Last Messages --------------- down? Here, take my spare." 01361_ Acquired Mining Laser. 01362_ 9H-G9S(g): "You're apparently new around these parts, I'll cover you." 01365_ Wheel destroyed. 01366_ as-20293 destroyed. 01369_ as-51117 destroyed. 01371_ 9H-G9S(g) knocked back. 01386_ as-90874 destroyed. 01392_ as-06155 destroyed. 01398_ Heat Sink destroyed. 01398_ System corrupted by crushing effect (+1). 01398_ as-70873 destroyed. 01398_ Com. Wheel destroyed. 01400_ Shotgun destroyed. 01402_ Destroyed Asb. Hover Unit. 01402_ Com. Wheel destroyed. 01403_ Hvy. Assault Rifle destroyed. 01404_ Hvy. Ion Engine destroyed. 01404_ Hvy. Assault Rifle destroyed. Map ----- +----------------------------------------------------+ | | | | | | | | | | | | | | | | | | | | | | | | | ????????????????????????????? | | ????????????????????????????? | | ????????????????????????????? | | ????????????????????????????? | | ????????????????????????????? | | ????????????????????????????? | | ????????????????????????????? | | ????????????????????????????? | | ????????????????????????????? | | ????????????????????????????? | | ????????????????????????####? | | ???????????????????????## #? | | ??????????????????????## #? | | ?????????????????????## a@#?? | | ????????????????????## aa#?? | | ????????????????????# #?? | | ????????????????????# a #?? | | ????????????????????##aaa #?? | | ?????????????????????#a a #?? | | ?? ?????????#######a #?? | | ? # ##### ## ##?? | | ? % ##??? | | ?# % ##???? | | ?# #### ##????? | | ????????????## ### ##?????? | | ?????????????###??####??????? | | ????????????????????????????? | | ????????????????????????????? | | ????????????????????????????? | | ????????????????????????????? | | ????????????????????????????? | | ????????????????????????????? | | ????????????????????????????? | | ????????????????????????????? | | ????????????????????????????? | | ????????????????????????????? | | ????????????????????????????? | | ????????????????????????????? | +----------------------------------------------------+ Best States ------------- Heat Dissipation 48 Energy Generation 14 Energy Capacity 280 Matter Stores 300 Matter Capacity 300 Sight Range 16 Robot Scan Range 14 Terrain Scan Density 10 Additional Mass Support 6 Evasion (%) 44 Targeting Accuracy 12 Item Schematics ----------------- None Robot Schematics ------------------ None Fabricated ------------ Nothing Repaired ---------- Nothing Studied --------- None Alien Tech Used ----------------- None Achievements -------------- None Challenges ------------ None Game ------ Seed ThermicShockRegenerator Manual? 0 Play Time 00:14:06 Cumulative 48.8 hours Start 2026.03.09 @ 17:48:35 End 2026.03.09 @ 18:01:28 Sessions 1 Manual Loads 0 Difficulty Rogue Special Mode None Game No. 64 Rogue 64 Adventurer 0 Explorer 0 Win Type - Total 0 Types 0/0/0/0/0/0/0/0/0/0 Lore% 33 Gallery% 34 Achievement% 25 Wizard Run 0 Options --------- Layout 2 ASCII 0 Keyboard 1 Movement Arrows Keybinds 0 Fullscreen 1 Font 24/Smallcaps Map View 50x44 Zoom Use 0% Tactical HUD 1 Map Filters NONE Filters NONE Steam 1 RUN: 0b7f62b0-0456-44dd-95cf-e8bf60691246